bitfinex-derivatives/quotes_BTCF0:USTF0_20250915
["timestamp","ask_amount","ask_price","bid_price","bid_amount"]
[1757948960128,0.0001,114580.0,114570.0,0.0297]
[1757948960327,0.71965224,114590.0,114570.0,0.0297]
[1757948960527,0.74285224,114590.0,114580.0,0.82808]
[1757948960734,0.74275224,114590.0,114580.0,0.82808]
[1757948962232,0.03623,114590.0,114580.0,0.82808]
[1757948962426,0.71965224,114600.0,114580.0,0.83776]
[1757948962627,0.005,114590.0,114580.0,1.54438224]
[1757948962829,0.005,114590.0,114580.0,1.54428224]
[1757948963625,0.01,114590.0,114580.0,1.54528224]
[1757948964736,0.01,114590.0,114580.0,0.73932224]
[1757948964928,0.01,114590.0,114580.0,1.54520224]
[1757948965128,0.01,114590.0,114580.0,0.73932224]
[1757948965327,0.01,114590.0,114580.0,1.54520224]
[1757948965739,0.01,114590.0,114580.0,1.60520224]
[1757948966134,0.03274,114590.0,114580.0,1.54520224]
[1757948966433,0.03274,114590.0,114580.0,1.19948]
[1757948966637,0.01,114590.0,114580.0,1.19948]
[1757948967235,0.03274,114590.0,114580.0,0.3936]
[1757948967436,0.03274,114590.0,114580.0,1.19944]
[1757948967737,0.01,114590.0,114580.0,1.19944]
[1757948968134,0.01,114590.0,114580.0,1.54620224]
[1757948968335,0.01,114590.0,114580.0,1.54616224]
[1757948968631,0.37846224,114590.0,114580.0,0.3936]
[1757948968937,0.39160224,114590.0,114580.0,1.19068]
[1757948969137,1.00240224,114590.0,114580.0,0.02312]
[1757948969336,1.00240224,114590.0,114580.0,0.83016]
[1757948969531,1.00240224,114590.0,114580.0,0.02312]
[1757948969727,1.00240224,114590.0,114580.0,0.001]
[1757948970736,0.67834463,114590.0,114580.0,0.001]
[1757948970936,1.02406687,114590.0,114580.0,0.001]
[1757948971337,1.00240224,114590.0,114580.0,0.001]
[1757948971839,1.08596583,114590.0,114580.0,0.001]
[1757948972238,1.10764033,114590.0,114580.0,0.001]
[1757948972437,1.08596583,114590.0,114580.0,0.001]
[1757948972837,1.08596583,114590.0,114580.0,0.02217]
[1757948973138,1.08596583,114590.0,114580.0,0.001]
[1757948974341,1.1076534,114590.0,114580.0,0.001]
[1757948976744,1.1076534,114590.0,114580.0,0.02217]
[1757948976939,0.8576534,114590.0,114580.0,0.02217]
[1757948978647,0.8576534,114590.0,114580.0,0.001]
[1757948979144,0.8576534,114590.0,114580.0,0.02217]
[1757948979145,0.42836757,114590.0,114580.0,0.02217]
[1757948979741,0.8576534,114590.0,114580.0,0.001]
[1757948980246,0.8576534,114590.0,114580.0,0.02217]
[1757948981543,0.01,114590.0,114580.0,1.87751583]
[1757948981742,0.04588,114590.0,114580.0,0.02217]
[1757948981943,0.83596583,114590.0,114580.0,0.02217]
[1757948982449,0.83596583,114590.0,114580.0,0.001]
[1757948983761,0.85768612,114590.0,114580.0,0.001]
[1757948985462,1.10768612,114590.0,114580.0,0.001]
[1757948986556,1.91540612,114590.0,114580.0,0.001]
[1757948987561,1.91524612,114590.0,114580.0,0.001]
[1757948987860,1.10768612,114590.0,114580.0,0.001]
[1757948988053,1.91516612,114590.0,114580.0,0.001]
[1757948989659,1.10768612,114590.0,114580.0,0.001]
[1757948989859,1.91664612,114590.0,114580.0,0.001]
[1757948990866,1.10768612,114590.0,114580.0,0.001]
[1757948991069,0.85768612,114590.0,114580.0,0.02217]
[1757948991262,1.66640612,114590.0,114580.0,0.02217]
[1757948991462,0.85768612,114590.0,114580.0,0.02217]
[1757948992168,1.66656612,114590.0,114580.0,0.02217]
[1757948992468,0.42840029,114590.0,114580.0,0.02217]
[1757948992668,0.42840029,114590.0,114580.0,0.27217]
[1757948992966,0.85768612,114590.0,114580.0,0.27217]
[1757948993170,0.42840029,114590.0,114580.0,0.27217]
[1757948993364,0.85768612,114590.0,114580.0,0.27217]
[1757948993767,0.77406201,114590.0,114580.0,0.27217]
[1757948996063,0.42840029,114590.0,114580.0,0.27217]
[1757948996368,0.77406201,114590.0,114580.0,0.27217]
[1757948998568,0.42840029,114590.0,114580.0,0.27217]
[1757948998769,0.77406201,114590.0,114580.0,0.27217]
[1757949002168,0.77406201,114590.0,114580.0,0.2727]
[1757949005972,0.42840029,114590.0,114580.0,0.2727]
[1757949006175,0.77406201,114590.0,114580.0,0.2727]
[1757949007174,0.42840029,114590.0,114580.0,0.2727]
[1757949007374,0.77406201,114590.0,114580.0,0.251]
[1757949007575,0.77406201,114590.0,114580.0,0.2727]
[1757949007776,0.77406775,114590.0,114580.0,0.2727]
[1757949008276,0.42840029,114590.0,114580.0,0.2727]
[1757949008674,0.77406775,114590.0,114580.0,0.2727]
[1757949009272,0.03274,114590.0,114580.0,0.97371492]
[1757949009472,0.35566746,114590.0,114580.0,0.62804746]
[1757949009668,0.38987746,114590.0,114580.0,0.61836746]
[1757949010175,0.38987746,114590.0,114580.0,0.2727]
[1757949010578,0.01,114590.0,114580.0,0.61836746]
[1757949010874,0.35566746,114590.0,114580.0,0.61836746]
[1757949011081,0.35566746,114590.0,114580.0,1.42816746]
[1757949011381,0.01,114590.0,114580.0,1.42816746]
[1757949012175,0.36865746,114590.0,114580.0,1.0825]
[1757949012384,0.36865746,114590.0,114580.0,1.42816746]
[1757949013383,0.35566746,114590.0,114580.0,1.42816746]
[1757949013583,0.01,114590.0,114580.0,1.42816746]
[1757949013880,0.35566746,114590.0,114580.0,1.42816746]
[1757949014078,0.01,114590.0,114580.0,1.42816746]
[1757949014273,0.35566746,114590.0,114580.0,1.42816746]
[1757949014582,0.36865746,114590.0,114580.0,1.42816746]
[1757949015377,0.04421,114590.0,114580.0,1.42768746]
[1757949015576,0.38987746,114590.0,114580.0,1.08202]
[1757949015776,0.04421,114590.0,114580.0,1.42768746]
[1757949015977,0.38987746,114590.0,114580.0,1.42768746]
[1757949016180,0.73554492,114590.0,114580.0,0.0227]
[1757949016485,0.75067746,114590.0,114580.0,0.0227]
[1757949016677,1.09634492,114590.0,114580.0,0.0227]
[1757949016877,1.34634492,114590.0,114580.0,0.001]
[1757949017183,1.00067746,114590.0,114580.0,0.001]
[1757949017385,1.34634492,114590.0,114580.0,0.0227]
[1757949017884,1.00067746,114590.0,114580.0,0.0227]
[1757949018886,1.34634492,114590.0,114580.0,0.0227]
[1757949019084,1.00067746,114590.0,114580.0,0.0227]
[1757949019985,0.65501,114590.0,114580.0,0.0227]
[1757949020285,1.00067746,114590.0,114580.0,0.0227]
[1757949021091,1.36839606,114590.0,114580.0,0.0227]
[1757949021285,1.36839606,114590.0,114580.0,0.001]
[1757949022083,2.17811606,114590.0,114580.0,0.001]
[1757949022388,2.17811606,114590.0,114580.0,0.0227]
[1757949022585,1.36839606,114590.0,114580.0,0.0227]
[1757949022888,0.7727286,114590.0,114580.0,0.0227]
[1757949023486,0.7727286,114590.0,114580.0,0.001]
[1757949023686,0.7727286,114590.0,114580.0,0.0227]
[1757949025179,1.11839606,114590.0,114580.0,0.0227]
[1757949025988,0.7727286,114590.0,114580.0,0.0227]
[1757949026383,0.42706114,114590.0,114580.0,0.0227]
[1757949026584,0.7727286,114590.0,114580.0,0.0227]
[1757949026784,0.42706114,114590.0,114580.0,0.0227]
[1757949026987,0.7727286,114590.0,114580.0,0.0227]
[1757949028290,0.7727286,114590.0,114580.0,0.36836746]
[1757949028494,0.4119286,114590.0,114580.0,0.36836746]
[1757949028686,0.38987746,114590.0,114580.0,0.36836746]
[1757949029086,0.38987746,114590.0,114580.0,0.0227]
[1757949031593,0.38987746,114590.0,114580.0,0.36836746]
[1757949032193,0.38987746,114590.0,114580.0,0.72916746]
[1757949032393,0.38987746,114590.0,114580.0,0.73674746]
[1757949032988,0.38987746,114590.0,114580.0,0.39108]
[1757949033194,0.04421,114590.0,114580.0,0.72916746]
[1757949033494,0.38987746,114590.0,114580.0,0.72916746]
[1757949033693,0.38987746,114590.0,114580.0,1.1917]
[1757949033894,0.38987746,114590.0,114580.0,0.8309]
[1757949034393,0.73554492,114590.0,114580.0,0.001]
[1757949034692,1.09634492,114590.0,114580.0,0.001]
[1757949035793,1.11854012,114590.0,114580.0,0.001]
[1757949036284,1.09634492,114590.0,114580.0,0.02354]
[1757949036487,1.09634492,114590.0,114580.0,0.001]
[1757949036684,1.11854016,114590.0,114580.0,0.001]
[1757949036883,1.09634492,114590.0,114580.0,0.001]
[1757949037084,1.11854016,114590.0,114580.0,0.001]
[1757949037794,1.92662016,114590.0,114580.0,0.001]
[1757949038490,1.92662016,114590.0,114580.0,0.02354]
[1757949038895,1.92662016,114590.0,114580.0,0.001]
[1757949039994,1.92662016,114590.0,114580.0,0.02354]
[1757949040393,1.92662016,114590.0,114580.0,0.001]
[1757949040783,1.92662016,114590.0,114580.0,0.02354]
[1757949042095,1.92662016,114590.0,114580.0,0.001]
[1757949043293,2.17662016,114590.0,114580.0,0.001]
[1757949045997,2.17534016,114590.0,114580.0,0.02354]
[1757949046296,2.17534016,114590.0,114580.0,0.001]
[1757949047894,1.36854016,114590.0,114580.0,0.001]
[1757949048197,0.7728727,114590.0,114580.0,0.02354]
[1757949048396,1.5793127,114590.0,114580.0,0.02354]
[1757949048593,1.92498016,114590.0,114580.0,0.02354]
[1757949049196,0.42720524,114590.0,114580.0,0.02354]
[1757949049490,1.5793127,114590.0,114580.0,0.02354]
[1757949050096,0.7728727,114590.0,114580.0,0.02354]
[1757949050892,0.4120727,114590.0,114580.0,0.02354]
[1757949051086,0.4120727,114590.0,114580.0,0.61920746]
[1757949051291,0.06640524,114590.0,114580.0,0.96487492]
[1757949051492,0.04421,114590.0,114580.0,0.96487492]
[1757949051686,0.04421,114590.0,114580.0,0.61920746]
[1757949051897,0.38987746,114590.0,114580.0,0.61920746]
[1757949052798,0.04421,114590.0,114580.0,0.61920746]
[1757949052999,0.38987746,114590.0,114580.0,0.61920746]
[1757949053196,0.38987746,114590.0,114580.0,0.27354]
[1757949053399,0.38987746,114590.0,114580.0,0.61920746]
[1757949054797,0.38987746,114590.0,114580.0,1.42564746]
[1757949055302,0.01,114590.0,114580.0,1.43532746]
[1757949055596,0.01,114590.0,114580.0,1.79612746]
[1757949055797,0.35566746,114590.0,114580.0,1.79612746]
[1757949056100,0.35566746,114590.0,114580.0,1.88337126]
[1757949056404,0.35566746,114590.0,114580.0,1.79612746]
[1757949056595,0.01,114590.0,114580.0,1.79612746]
[1757949056795,0.35566746,114590.0,114580.0,1.79612746]
[1757949056999,0.02395,114590.0,114580.0,1.79612746]
[1757949057201,0.39258746,114590.0,114580.0,0.98000746]
[1757949057395,0.39258746,114590.0,114580.0,1.78644746]
[1757949057596,0.04692,114590.0,114580.0,1.78644746]
[1757949058097,0.39258746,114590.0,114580.0,1.78644746]
[1757949058601,0.39258746,114590.0,114580.0,1.78640746]
[1757949059597,0.39258746,114590.0,114580.0,0.61920746]
[1757949059902,0.39258746,114590.0,114580.0,1.42560746]
[1757949060102,0.04692,114590.0,114580.0,1.42560746]
[1757949060302,0.39258746,114590.0,114580.0,1.78640746]
[1757949061106,0.39258746,114590.0,114580.0,1.44074]
[1757949061302,0.39258746,114590.0,114580.0,1.78640746]
[1757949062099,0.39258746,114590.0,114580.0,1.07567492]
[1757949062305,0.01,114590.0,114580.0,2.21931882]
[1757949063006,0.01,114590.0,114580.0,2.21927882]
[1757949064207,0.04692,114590.0,114580.0,0.63434]
[1757949064406,0.04692,114590.0,114580.0,1.78636746]
[1757949064607,0.04692,114590.0,114580.0,1.4407]
[1757949064807,0.03297,114590.0,114580.0,0.7215839]
[1757949065110,0.03297,114590.0,114580.0,2.21927882]
[1757949065809,0.01,114590.0,114580.0,1.59828753]
[1757949066108,0.01,114590.0,114580.0,2.28962245]
[1757949066903,0.01,114590.0,114580.0,1.59828753]
[1757949067103,0.01,114590.0,114580.0,2.28962245]
[1757949067305,0.01,114590.0,114580.0,1.59828753]
[1757949067500,0.01,114590.0,114580.0,2.20241855]
[1757949067706,0.01,114590.0,114580.0,1.51108363]
[1757949067905,0.01,114590.0,114580.0,2.20241855]
[1757949068306,0.02395,114590.0,114580.0,1.51108363]
[1757949068614,0.36961746,114590.0,114580.0,2.20241855]
[1757949068815,0.36961746,114590.0,114580.0,1.85675109]
[1757949069206,0.01,114590.0,114580.0,1.51108363]
[1757949069603,0.01,114590.0,114580.0,2.20241855]
[1757949069807,0.01,114590.0,114580.0,1.85661539]
[1757949070109,0.01,114590.0,114580.0,2.21045929]
[1757949070510,0.01,114590.0,114580.0,1.06681539]
[1757949070710,0.02395,114590.0,114580.0,1.52892363]
[1757949071412,0.04692,114590.0,114580.0,0.72128363]
[1757949071609,0.39245176,114590.0,114580.0,1.45854]
[1757949071819,0.39245176,114590.0,114580.0,0.02354]
[1757949072017,0.39245176,114590.0,114580.0,0.83126]
[1757949072406,0.39245176,114590.0,114580.0,0.02354]
[1757949072712,0.39245176,114590.0,114580.0,0.83114]
[1757949078515,0.04692,114590.0,114580.0,0.83114]
[1757949080823,0.39245176,114590.0,114580.0,0.83114]
[1757949083924,0.39245176,114590.0,114580.0,0.02354]
[1757949084131,1.02547015,114590.0,114580.0,0.80736]
[1757949084832,0.77547015,114590.0,114580.0,0.82997]
[1757949085033,0.42993839,114590.0,114580.0,0.82997]
[1757949085335,0.06913839,114590.0,114580.0,0.82997]
[1757949086022,0.04692,114590.0,114580.0,0.82997]
[1757949086529,0.39245176,114590.0,114580.0,0.82997]
[1757949088534,0.04692,114590.0,114580.0,0.82997]
[1757949092437,0.39245176,114590.0,114580.0,0.82997]
[1757949093637,0.04692,114590.0,114580.0,0.82997]
[1757949093834,0.39245176,114590.0,114580.0,0.82997]
[1757949095635,0.04692,114590.0,114580.0,0.82997]
[1757949095841,0.04692,114590.0,114580.0,1.17550176]
[1757949096742,0.04692,114590.0,114580.0,0.82997]
[1757949098436,0.03297,114590.0,114580.0,1.17550176]
[1757949098643,0.03297,114590.0,114580.0,0.83965]
[1757949100045,0.01,114590.0,114580.0,1.18518176]
[1757949100640,0.03187,114590.0,114580.0,0.37882176]
[1757949100844,0.03187,114590.0,114580.0,1.18518176]
[1757949101040,0.01,114590.0,114580.0,1.18518176]
[1757949101545,0.01,114590.0,114580.0,1.43518176]
[1757949101942,0.01,114590.0,114580.0,0.69860008]
[1757949102143,0.01,114590.0,114580.0,1.86576008]
[1757949102943,0.01,114590.0,114580.0,1.05940008]
[1757949103146,0.01,114590.0,114580.0,1.86572008]
[1757949105750,0.01,114590.0,114580.0,1.05940008]
[1757949106048,0.01,114590.0,114580.0,1.86572008]
[1757949106244,0.01,114590.0,114580.0,0.70418832]
[1757949106447,0.64051176,114590.0,114580.0,0.02361]
[1757949106648,1.00131176,114590.0,114580.0,0.02361]
[1757949107148,1.02352742,114590.0,114580.0,0.02361]
[1757949107746,1.02352742,114590.0,114580.0,0.001]
[1757949108643,1.82980742,114590.0,114580.0,0.001]
[1757949109050,0.03498,114580.0,114570.0,0.02070988]
[1757949109241,0.76352742,114580.0,114570.0,0.02060988]
[1757949109652,0.03498,114570.0,114560.0,0.0001]
[1757949109953,0.74131176,114570.0,114560.0,0.02138]
[1757949111252,0.74331176,114570.0,114560.0,0.02138]
[1757949111448,0.74231176,114570.0,114560.0,0.02138]
[1757949112354,0.74531176,114570.0,114560.0,0.02238]
[1757949116957,0.39978,114570.0,114560.0,0.02238]
[1757949117160,0.74531176,114570.0,114560.0,0.02238]
[1757949117456,0.39978,114570.0,114560.0,0.02238]
[1757949117658,0.74531176,114570.0,114560.0,0.02238]
[1757949120953,0.39978,114570.0,114560.0,0.02238]
[1757949121259,0.74531176,114570.0,114560.0,0.02238]
[1757949122962,0.75401517,114570.0,114560.0,0.02238]
[1757949123658,0.39978,114570.0,114560.0,0.02238]
[1757949123860,0.74531176,114570.0,114560.0,0.02238]
[1757949124664,0.75382085,114570.0,114560.0,0.001]
[1757949124862,1.34935261,114570.0,114560.0,0.001]
[1757949125462,1.00382085,114570.0,114560.0,0.001]
[1757949126761,1.81014085,114570.0,114560.0,0.001]
[1757949128361,1.00382085,114570.0,114560.0,0.001]
[1757949128660,1.00382085,114570.0,114560.0,0.0231]
[1757949128865,1.81018085,114570.0,114560.0,0.0231]
[1757949129167,1.81018085,114570.0,114560.0,0.001]
[1757949129864,1.81043337,114570.0,114560.0,0.0231]
[1757949130069,1.81043337,114570.0,114560.0,0.001]
[1757949130473,1.00407337,114570.0,114560.0,0.001]
[1757949130766,1.81043337,114570.0,114560.0,0.0231]
[1757949130966,1.56043337,114570.0,114560.0,0.0231]
[1757949131167,0.75407337,114570.0,114560.0,0.0231]
[1757949131766,0.03898,114570.0,114560.0,0.36888428]
[1757949131964,0.38476428,114570.0,114560.0,0.36888428]
[1757949132271,0.03898,114570.0,114560.0,0.36888428]
[1757949132661,0.38476428,114570.0,114560.0,0.36888428]
[1757949134973,0.38476428,114570.0,114560.0,0.0231]
[1757949135174,0.38476428,114570.0,114560.0,0.36888428]
[1757949135974,0.03898,114570.0,114560.0,0.96466856]
[1757949136372,0.03898,114570.0,114560.0,1.42524428]
[1757949136568,0.03898,114570.0,114560.0,1.77102856]
[1757949137275,0.03898,114570.0,114560.0,1.42524428]
[1757949137476,0.03898,114570.0,114560.0,1.77102856]
[1757949138675,0.38476428,114570.0,114560.0,0.61888428]
[1757949138875,0.38476428,114570.0,114560.0,0.2731]
[1757949139068,1.09134856,114570.0,114560.0,0.001]
[1757949139272,0.76773557,114570.0,114560.0,0.001]
[1757949140576,2.16987985,114570.0,114560.0,0.001]
[1757949140877,1.82409557,114570.0,114560.0,0.001]
[1757949144883,1.89482914,114570.0,114560.0,0.001]
[1757949146983,1.89482914,114570.0,114560.0,0.0234]
[1757949147182,1.88552914,114570.0,114560.0,0.0234]
[1757949147688,0.05185129,114570.0,114560.0,0.71496856]
[1757949147880,0.39763557,114570.0,114560.0,0.36918428]
[1757949148082,0.02717129,114570.0,114560.0,0.34678428]
[1757949148278,0.37295557,114570.0,114560.0,0.34678428]
[1757949148582,0.35078428,114570.0,114560.0,0.34678428]
[1757949149080,0.005,114570.0,114560.0,0.69256856]
[1757949149382,0.005,114570.0,114560.0,1.49888856]
[1757949149683,0.005,114570.0,114560.0,1.15310428]
[1757949150184,0.35078428,114570.0,114560.0,1.15310428]
[1757949150383,0.35078428,114570.0,114560.0,0.80732]
[1757949150584,0.005,114570.0,114560.0,1.15310428]
[1757949150780,0.35078428,114570.0,114560.0,1.15310428]
[1757949151278,0.005,114570.0,114560.0,1.49888856]
[1757949151486,0.005,114570.0,114560.0,1.74888856]
[1757949152480,0.005,114570.0,114560.0,0.251]
[1757949152682,0.005,114570.0,114560.0,1.05732]
[1757949152882,0.005,114570.0,114560.0,1.74888856]
[1757949153287,0.01838,114570.0,114560.0,1.74888856]
[1757949153483,0.005,114570.0,114560.0,1.76133856]
[1757949153684,0.005,114570.0,114560.0,1.78171169]
[1757949154988,0.02697,114570.0,114560.0,0.99779169]
[1757949155192,0.04035,114570.0,114560.0,1.80407169]
[1757949155390,0.04035,114570.0,114560.0,1.10005313]
[1757949155689,0.04035,114570.0,114560.0,1.79162169]
[1757949156585,0.04035,114570.0,114560.0,1.80407169]
[1757949156586,0.005,114570.0,114560.0,1.80407169]
[1757949156885,0.005,114570.0,114560.0,2.16487169]
[1757949159294,0.005,114570.0,114560.0,1.91487169]
[1757949162396,0.01838,114570.0,114560.0,1.22326313]
[1757949162596,0.01838,114570.0,114560.0,1.91483169]
[1757949163292,0.005,114570.0,114560.0,1.91483169]
[1757949163794,0.005,114570.0,114560.0,1.10859169]
[1757949163996,0.005,114570.0,114560.0,1.91479169]
[1757949170301,0.005,114570.0,114560.0,1.22322313]
[1757949170502,0.005,114570.0,114560.0,1.91479169]
[1757949172398,0.005,114570.0,114560.0,1.10859169]
[1757949172599,0.0397,114570.0,114560.0,1.90230169]
[1757949173002,0.0397,114570.0,114560.0,1.54150169]
[1757949173301,0.0397,114570.0,114560.0,1.91475169]
[1757949173506,0.0269,114570.0,114560.0,1.91475169]
[1757949173801,0.005,114570.0,114560.0,1.91475169]
[1757949178498,0.005,114570.0,114560.0,2.26053597]
[1757949179003,0.004,114570.0,114560.0,2.26053597]
[1757949179306,0.004,114570.0,114560.0,1.91475169]
[1757949180100,0.004,114570.0,114560.0,1.10859169]
[1757949180404,0.004,114570.0,114560.0,1.91471169]
[1757949181708,0.004,114570.0,114560.0,2.6754392]
[1757949181899,0.004,114570.0,114560.0,2.32965492]
[1757949182100,0.004,114570.0,114560.0,2.51965492]
[1757949182501,0.004,114570.0,114560.0,2.8654392]
[1757949182703,0.004,114570.0,114560.0,2.7781804]
[1757949183204,0.004,114570.0,114560.0,2.8654393]
[1757949184104,0.004,114570.0,114560.0,3.1320393]
[1757949185505,0.0001,114580.0,114560.0,3.1320393]
[1757949185808,0.0001,114580.0,114570.0,1.07398856]
[1757949186010,0.02251,114590.0,114580.0,0.03407]
[1757949186213,0.02241,114590.0,114580.0,1.53171856]
[1757949186710,0.73753288,114600.0,114590.0,0.03407]
[1757949186711,0.0399786,114600.0,114590.0,0.03407]
[1757949186904,0.0398786,114600.0,114590.0,0.37985428]
[1757949187510,0.3914777,114610.0,114590.0,0.37985428]
[1757949187710,0.4138877,114610.0,114600.0,1.17344428]
[1757949187911,0.6638877,114610.0,114600.0,1.53167856]
[1757949188106,0.75967198,114610.0,114600.0,1.53167856]
[1757949188310,0.75967198,114610.0,114600.0,1.18589428]
[1757949188608,0.37438,114620.0,114600.0,1.89247856]
[1757949188912,0.74257428,114620.0,114610.0,0.36740428]
[1757949189113,0.74257428,114620.0,114610.0,0.82766]
[1757949189306,0.74257428,114620.0,114610.0,1.17344428]
[1757949189507,1.33835856,114620.0,114610.0,0.82762]
[1757949189707,0.03599,114610.0,114600.0,0.82772]
[1757949189913,0.74233833,114610.0,114600.0,0.02262]
[1757949190108,0.99233833,114610.0,114600.0,0.807]
[1757949190607,0.99233833,114610.0,114600.0,0.001]
[1757949190813,0.03599,114600.0,114590.0,0.84792767]
[1757949191113,0.38153833,114600.0,114590.0,0.84782767]
[1757949191313,0.03599,114600.0,114590.0,0.84782767]
[1757949191513,0.03599,114600.0,114590.0,0.04182767]
[1757949192012,0.03599,114600.0,114590.0,0.84778767]
[1757949192209,0.99233833,114600.0,114590.0,0.02162]
[1757949192404,0.03599,114590.0,114580.0,0.02172]
[1757949192610,0.03599,114580.0,114570.0,0.40298766]
[1757949192811,0.03599,114580.0,114570.0,0.04208766]
[1757949193013,0.74233833,114580.0,114570.0,0.82758]
[1757949193311,0.39679,114580.0,114570.0,0.82754]
[1757949193913,0.39979,114580.0,114570.0,0.82854]
[1757949195613,0.40279,114580.0,114570.0,0.82854]
[1757949196811,0.38921,114580.0,114570.0,1.20715587]
[1757949198819,0.40279,114580.0,114570.0,0.86160754]
[1757949199018,0.40279,114580.0,114570.0,1.20715587]
[1757949199613,0.40279,114580.0,114570.0,1.19470587]
[1757949200009,0.40279,114580.0,114570.0,0.84915754]
[1757949201825,0.02841,114580.0,114570.0,1.55550587]
[1757949203135,0.04199,114580.0,114570.0,1.55550587]
[1757949204131,0.04199,114580.0,114570.0,0.04323754]
[1757949204333,0.74833833,114580.0,114570.0,0.04323754]
[1757949204631,0.99833833,114580.0,114570.0,0.82749754]
[1757949205030,0.99833833,114580.0,114570.0,0.84911754]
[1757949205824,0.99833833,114580.0,114570.0,0.04323754]
[1757949206029,0.40279,114580.0,114570.0,1.19466587]
[1757949206829,0.40279,114580.0,114570.0,0.84911754]
[1757949207029,0.74833833,114580.0,114570.0,0.04323754]
[1757949207231,0.74833833,114580.0,114570.0,0.02161754]
[1757949207424,0.74833833,114580.0,114570.0,0.82749754]
[1757949207725,0.74833833,114580.0,114570.0,0.85008754]
[1757949212340,0.99833833,114580.0,114570.0,0.001]
[1757949212539,0.99833833,114580.0,114570.0,0.80684]
[1757949212734,0.99833833,114580.0,114570.0,0.001]
[1757949213038,1.01999848,114580.0,114570.0,0.001]
[1757949213244,0.99833833,114580.0,114570.0,0.001]
[1757949218240,1.01999574,114580.0,114570.0,0.001]
[1757949218437,0.99833833,114580.0,114570.0,0.001]
[1757949218942,1.80409833,114580.0,114570.0,0.001]
[1757949219438,1.55409833,114580.0,114570.0,0.001]
[1757949220540,1.5757747,114580.0,114570.0,0.001]
[1757949221438,1.58443591,114580.0,114570.0,0.001]
[1757949221839,0.77867591,114580.0,114570.0,0.02359]
[1757949224842,0.43312758,114580.0,114570.0,0.02359]
[1757949225041,0.77867591,114580.0,114570.0,0.02359]
[1757949235145,0.42446637,114580.0,114570.0,0.36913833]
[1757949235345,0.42446637,114580.0,114570.0,0.02359]
[1757949241156,0.7700147,114580.0,114570.0,0.02359]
[1757949245850,0.7700147,114580.0,114570.0,0.001]
[1757949247159,1.5752547,114580.0,114570.0,0.02375]
[1757949249661,1.5752547,114580.0,114570.0,0.001]
[1757949251763,1.22970637,114580.0,114570.0,0.001]
[1757949251961,1.92117583,114580.0,114570.0,0.001]
[1757949252662,1.92117583,114580.0,114570.0,0.02375]
[1757949252964,1.92117583,114580.0,114570.0,0.001]
[1757949253162,1.92109583,114580.0,114570.0,0.001]
[1757949254266,1.92109583,114580.0,114570.0,0.02375]
[1757949254863,1.92105583,114580.0,114570.0,0.02375]
[1757949255066,1.92101583,114580.0,114570.0,0.02375]
[1757949257055,1.92101583,114580.0,114570.0,0.001]
[1757949258165,1.11593583,114580.0,114570.0,0.001]
[1757949258364,1.92097583,114580.0,114570.0,0.001]
[1757949258659,1.11593583,114580.0,114570.0,0.001]
[1757949258865,1.11593583,114580.0,114570.0,0.02375]
[1757949259066,1.92093583,114580.0,114570.0,0.02375]
[1757949259259,0.42446637,114580.0,114570.0,0.02375]
[1757949259661,0.7702011,114580.0,114570.0,0.36948473]
[1757949259861,0.42446637,114580.0,114570.0,0.61948473]
[1757949260065,0.7702011,114580.0,114570.0,0.61948473]
[1757949262867,0.7702011,114580.0,114570.0,0.27375]
[1757949263166,0.7702011,114580.0,114570.0,0.61948473]
[1757949264067,0.7702011,114580.0,114570.0,0.27375]
[1757949264271,1.11593583,114580.0,114570.0,0.27375]
[1757949266666,0.7702011,114580.0,114570.0,0.27375]
[1757949267162,0.42446637,114580.0,114570.0,0.61948473]
[1757949267357,0.7702011,114580.0,114570.0,0.61948473]
[1757949267868,1.11593583,114580.0,114570.0,0.27375]
[1757949269768,0.7702011,114580.0,114570.0,0.27375]
[1757949269959,1.11593583,114580.0,114570.0,0.27375]
[1757949270363,0.7702011,114580.0,114570.0,0.61948473]
[1757949270563,1.11593583,114580.0,114570.0,0.61948473]
[1757949270769,1.11593583,114580.0,114570.0,0.27375]
[1757949272069,1.11593583,114580.0,114570.0,0.251]
[1757949273073,1.11593583,114580.0,114570.0,0.001]
[1757949273278,1.36593583,114580.0,114570.0,0.001]
[1757949273772,2.17069583,114580.0,114570.0,0.001]
[1757949278275,2.51643056,114580.0,114570.0,0.001]
[1757949278470,0.03579,114570.0,114560.0,0.0001]
[1757949278670,0.03579,114560.0,114550.0,0.0001]
[1757949278865,0.03579,114550.0,114540.0,0.36686473]
[1757949279169,0.39659,114550.0,114540.0,0.02103]
[1757949279375,0.74232473,114550.0,114540.0,0.02103]
[1757949279575,0.74232473,114550.0,114540.0,0.36676473]
[1757949279873,0.74232473,114550.0,114530.0,0.95856422]
[1757949279874,0.39659,114550.0,114530.0,0.95856422]
[1757949280076,0.0223,114540.0,114530.0,0.99204422]
[1757949280266,0.03579,114540.0,114530.0,1.22949422]
[1757949280466,0.03579,114540.0,114530.0,0.97949422]
[1757949281070,0.03479,114540.0,114530.0,0.97949422]
[1757949281369,0.03479,114540.0,114530.0,1.3954427]
[1757949281574,0.03479,114540.0,114530.0,1.3964427]
[1757949281873,0.03479,114540.0,114530.0,1.3994427]
[1757949282067,0.0213,114540.0,114530.0,1.4128927]
[1757949282269,0.37439,114550.0,114530.0,2.00862743]
[1757949282464,0.39669,114550.0,114540.0,0.02103]
[1757949282666,0.39659,114550.0,114540.0,0.71249946]
[1757949282866,0.74232473,114550.0,114540.0,0.02103]
[1757949283068,0.39659,114550.0,114540.0,0.36676473]
[1757949283467,0.39659,114550.0,114540.0,0.02103]
[1757949283679,0.39659,114550.0,114540.0,0.36676473]
[1757949284978,0.39659,114550.0,114540.0,0.36776473]
[1757949285379,0.39659,114550.0,114540.0,0.36876473]
[1757949285878,0.74232473,114550.0,114540.0,0.36876473]
[1757949286076,0.39659,114550.0,114540.0,0.36876473]
[1757949286275,0.74232473,114550.0,114540.0,0.36876473]
[1757949286485,0.39659,114550.0,114540.0,0.36876473]
[1757949286680,0.74232473,114550.0,114540.0,0.36876473]
[1757949287179,0.39659,114550.0,114540.0,0.02303]